bitfinex/quotes_BTCUSD_20241003
["timestamp","ask_amount","ask_price","bid_price","bid_amount"]
[1727998098488,0.81715691,60871.0,60870.0,0.000779]
[1727998098723,0.81915691,60871.0,60870.0,0.000779]
[1727998099639,0.81715691,60871.0,60870.0,0.000779]
[1727998102036,0.73955691,60871.0,60870.0,0.000779]
[1727998102274,0.55247461,60871.0,60870.0,0.000779]
[1727998102734,0.52671493,60871.0,60870.0,0.000779]
[1727998103011,0.24634074,60871.0,60870.0,0.095379]
[1727998103264,0.24634074,60871.0,60870.0,0.171379]
[1727998103501,0.08205974,60871.0,60870.0,0.171379]
[1727998103750,0.029636,60871.0,60870.0,0.335663]
[1727998104189,0.029636,60871.0,60870.0,0.171379]
[1727998104426,0.015636,60871.0,60870.0,0.171379]
[1727998104860,0.004636,60871.0,60870.0,0.171379]
[1727998105278,0.002636,60871.0,60870.0,0.171379]
[1727998105677,0.003636,60871.0,60870.0,0.172379]
[1727998106653,0.003636,60871.0,60870.0,0.336663]
[1727998108631,0.003636,60871.0,60870.0,0.172379]
[1727998108879,0.167917,60871.0,60870.0,0.172379]
[1727998109331,0.167917,60871.0,60870.0,0.096379]
[1727998109912,0.166917,60871.0,60870.0,0.096379]
[1727998110116,0.165917,60871.0,60870.0,0.095379]
[1727998110327,0.165917,60871.0,60870.0,0.096379]
[1727998112226,0.165917,60871.0,60870.0,0.095379]
[1727998112488,0.001636,60871.0,60870.0,0.2834613]
[1727998112714,0.001636,60871.0,60870.0,0.5237453]
[1727998113812,0.001636,60871.0,60870.0,0.336663]
[1727998116650,0.001636,60871.0,60870.0,0.172379]
[1727998116926,0.001636,60871.0,60870.0,0.336663]
[1727998117789,0.001636,60871.0,60870.0,0.172379]
[1727998118287,0.001636,60871.0,60870.0,0.336663]
[1727998120258,0.001636,60871.0,60870.0,0.172379]
[1727998121582,0.001636,60871.0,60870.0,0.336663]
[1727998122539,0.001636,60871.0,60870.0,0.172379]
[1727998122994,0.165917,60871.0,60870.0,0.172379]
[1727998125110,0.165917,60871.0,60870.0,0.096379]
[1727998127224,0.001636,60871.0,60870.0,0.096379]
[1727998127454,0.001636,60871.0,60870.0,0.260663]
[1727998127670,0.001636,60871.0,60870.0,0.38331825]
[1727998127893,0.001636,60871.0,60870.0,0.62600496]
[1727998128121,0.001636,60871.0,60870.0,0.64900496]
[1727998128804,0.001636,60871.0,60870.0,0.64800496]
[1727998129015,0.07372014,60875.0,60874.0,0.164273]
[1727998129265,0.07372014,60875.0,60874.0,0.64741496]
[1727998129723,0.07372014,60875.0,60874.0,0.71158352]
[1727998130636,0.07472014,60875.0,60874.0,0.71158352]
[1727998131306,0.07572014,60875.0,60874.0,0.71458352]
[1727998132156,0.002,60875.0,60874.0,0.71458352]
[1727998134072,0.003636,60875.0,60874.0,0.71458352]
[1727998134967,0.003636,60875.0,60874.0,0.71887909]
[1727998138887,0.003636,60875.0,60874.0,0.69587909]
[1727998139101,0.003636,60875.0,60874.0,0.50905528]
[1727998139958,0.002636,60875.0,60874.0,0.50905528]
[1727998140378,0.003636,60875.0,60874.0,0.50905528]
[1727998141225,0.002636,60875.0,60874.0,0.257573]
[1727998141454,0.002636,60875.0,60874.0,0.60758352]
[1727998141875,0.003636,60875.0,60874.0,0.60958352]
[1727998142328,0.003636,60875.0,60874.0,0.60758352]
[1727998142329,0.002636,60875.0,60874.0,0.60758352]
[1727998142575,0.003636,60875.0,60874.0,0.60958352]
[1727998142835,0.001636,60875.0,60874.0,0.60758352]
[1727998143075,0.002636,60875.0,60874.0,0.60958352]
[1727998143731,0.003636,60875.0,60874.0,0.60958352]
[1727998144391,0.002636,60875.0,60874.0,0.60958352]
[1727998144611,0.003636,60875.0,60874.0,0.60958352]
[1727998148809,0.003636,60875.0,60874.0,0.68528352]
[1727998155678,0.003636,60875.0,60874.0,0.64405302]
[1727998167247,0.003636,60875.0,60874.0,0.56835302]
[1727998171418,0.003636,60875.0,60874.0,0.47505302]
[1727998176973,0.003636,60875.0,60874.0,0.49239602]
[1727998177239,0.001636,60876.0,60875.0,0.385871]
[1727998177456,0.001636,60877.0,60876.0,0.468368]
[1727998177676,0.001636,60877.0,60876.0,0.65089771]
[1727998178849,0.002636,60877.0,60876.0,0.65289771]
[1727998179690,0.003636,60877.0,60876.0,0.66189771]
[1727998181015,0.003636,60877.0,60876.0,0.66189307]
[1727998181663,0.07392282,60882.0,60881.0,0.164254]
[1727998181888,0.07392282,60882.0,60881.0,0.56863402]
[1727998182147,0.07392282,60882.0,60881.0,0.75613402]
[1727998182394,0.07392282,60882.0,60881.0,0.75413402]
[1727998182853,0.07392282,60882.0,60881.0,0.76513402]
[1727998182854,0.07492282,60882.0,60881.0,0.76513402]
[1727998183098,0.001,60882.0,60881.0,0.76513402]
[1727998183350,0.002,60882.0,60881.0,0.77913402]
[1727998184071,0.002,60882.0,60881.0,0.4957393]
[1727998184299,0.002,60882.0,60881.0,0.60103402]
[1727998186459,0.002,60882.0,60881.0,0.60538478]
[1727998190596,0.002,60882.0,60881.0,0.77928478]
[1727998191273,0.002,60882.0,60881.0,0.77628478]
[1727998191513,0.002,60882.0,60881.0,0.78128478]
[1727998193268,0.002,60882.0,60881.0,0.77628478]
[1727998193479,0.002,60882.0,60881.0,0.78128478]
[1727998194818,0.002,60882.0,60881.0,0.77628478]
[1727998195078,0.002,60882.0,60881.0,0.78128478]
[1727998196614,0.24634789,60894.0,60890.0,0.0941]
[1727998196832,0.24634789,60894.0,60893.0,0.30981531]
[1727998197066,0.24634789,60894.0,60893.0,0.47300202]
[1727998197316,0.001636,60896.0,60895.0,0.164217]
[1727998197537,0.001636,60896.0,60895.0,0.35040371]
[1727998199270,0.001636,60896.0,60895.0,0.36440371]
[1727998199686,0.001636,60896.0,60895.0,0.37840371]
[1727998200760,0.001636,60896.0,60895.0,0.50099702]
[1727998204098,0.001636,60896.0,60895.0,0.35959948]
[1727998204321,0.084936,60896.0,60895.0,0.35959948]
[1727998205179,0.001636,60896.0,60895.0,0.35959948]
[1727998205638,0.001636,60896.0,60895.0,0.38259948]
[1727998207205,0.084936,60896.0,60895.0,0.35959948]
[1727998210499,0.001636,60896.0,60895.0,0.38259948]
[1727998211662,0.001636,60896.0,60895.0,0.48259948]
[1727998213690,0.001636,60896.0,60895.0,0.48459948]
[1727998213940,0.001636,60896.0,60895.0,0.48259948]
[1727998219971,0.001636,60896.0,60895.0,0.48459948]
[1727998220199,0.001636,60896.0,60895.0,0.48259948]
[1727998220435,0.001636,60897.0,60896.0,0.169214]
[1727998220649,0.001636,60897.0,60896.0,0.64214266]
[1727998221115,0.001636,60897.0,60896.0,0.64414266]
[1727998222290,0.001636,60897.0,60896.0,0.65814266]
[1727998222537,0.001636,60897.0,60896.0,0.67214266]
[1727998223217,0.001636,60897.0,60896.0,0.67014266]
[1727998223442,0.001636,60897.0,60896.0,0.67214266]
[1727998226532,0.24634789,60910.0,60907.0,0.37392595]
[1727998226777,0.24634789,60910.0,60907.0,0.53711266]
[1727998227282,0.079,60913.0,60907.0,0.53711266]
[1727998227782,0.001636,60916.0,60907.0,0.53711266]
[1727998228248,0.001636,60916.0,60907.0,0.55011266]
[1727998228738,0.001636,60916.0,60907.0,0.55211266]
[1727998228973,0.001636,60916.0,60907.0,0.56411266]
[1727998230175,0.001636,60916.0,60907.0,0.81046055]
[1727998230422,0.001636,60916.0,60907.0,0.56411266]
[1727998231388,0.001636,60916.0,60913.0,0.35090995]
[1727998231638,0.001636,60916.0,60913.0,0.53709666]
[1727998233065,0.001636,60916.0,60913.0,0.54409666]
[1727998233784,0.001636,60916.0,60913.0,0.55109666]
[1727998238061,0.001636,60916.0,60913.0,0.65029666]
[1727998238292,0.001636,60916.0,60913.0,0.65229666]
[1727998239137,0.001636,60916.0,60913.0,0.64529666]
[1727998239571,0.001636,60916.0,60913.0,0.65929666]
[1727998239789,0.001638,60917.0,60916.0,0.18916]
[1727998240006,0.001638,60917.0,60916.0,0.55154671]
[1727998241499,0.001638,60917.0,60916.0,0.56554671]
[1727998241958,0.001638,60917.0,60916.0,0.57954671]
[1727998244010,0.001638,60917.0,60916.0,0.58376973]
[1727998247065,0.001638,60917.0,60916.0,0.58176973]
[1727998248560,0.001638,60917.0,60916.0,0.58376973]
[1727998248988,0.001638,60917.0,60916.0,0.58176973]
[1727998249661,0.001638,60917.0,60916.0,0.45956973]
[1727998250972,0.001638,60917.0,60916.0,0.48256973]
[1727998253357,0.001638,60917.0,60916.0,0.66086973]
[1727998256328,0.001638,60917.0,60916.0,0.66250373]
[1727998256792,0.001638,60917.0,60916.0,0.48420373]
[1727998260889,0.001638,60917.0,60916.0,0.38420373]
[1727998261552,0.001638,60917.0,60916.0,0.37020373]
[1727998261985,0.001638,60917.0,60916.0,0.38420373]
[1727998262394,0.001638,60917.0,60916.0,0.37020373]
[1727998264333,0.096138,60917.0,60916.0,0.03385702]
[1727998264594,0.177038,60917.0,60916.0,0.03385702]
[1727998265391,0.341195,60917.0,60916.0,0.03385702]
[1727998265642,0.177038,60917.0,60916.0,0.22059897]
[1727998265869,0.177038,60917.0,60916.0,0.38475897]
[1727998266118,0.177038,60917.0,60916.0,0.35675897]
[1727998266358,0.177038,60917.0,60916.0,0.36375897]
[1727998267020,0.177038,60917.0,60916.0,0.17701702]
[1727998267502,0.177038,60917.0,60916.0,0.18401702]
[1727998267727,0.177038,60917.0,60916.0,0.17701702]
[1727998267965,0.177038,60917.0,60916.0,0.17001702]
[1727998268154,0.177038,60917.0,60916.0,0.18001702]
[1727998268403,0.17675725,60917.0,60916.0,0.18001702]
[1727998268886,0.1762541,60917.0,60916.0,0.01585702]
[1727998270863,0.3404111,60917.0,60916.0,0.01585702]
[1727998271552,0.38959755,60917.0,60916.0,0.01585702]
[1727998271992,0.38959755,60917.0,60916.0,0.01085702]
[1727998272216,0.38959755,60917.0,60916.0,0.00585702]
[1727998272437,0.38959755,60917.0,60916.0,0.00785702]
[1727998272897,0.38959755,60917.0,60916.0,0.00985702]
[1727998273781,0.43879055,60917.0,60916.0,0.00985702]
[1727998274218,0.43879055,60917.0,60916.0,0.00585702]
[1727998274452,0.38959755,60917.0,60916.0,0.01585702]
[1727998274702,0.3404111,60917.0,60916.0,0.01585702]
[1727998278102,0.0817541,60917.0,60916.0,0.18001702]
[1727998286340,0.0008541,60917.0,60916.0,0.18001702]
[1727998286580,0.00055476,60917.0,60916.0,0.52994568]
[1727998288569,0.00055476,60917.0,60916.0,0.62434568]
[1727998292980,0.00055476,60917.0,60916.0,0.52994568]
[1727998296533,0.00055476,60917.0,60916.0,0.34320373]
[1727998298322,0.07985476,60917.0,60916.0,0.18001702]
[1727998301808,0.24401176,60917.0,60916.0,0.01585702]
[1727998302498,0.29319708,60917.0,60916.0,0.01585702]
[1727998305620,0.24401176,60917.0,60916.0,0.01585702]
[1727998307592,0.31779737,60917.0,60916.0,0.01585702]
[1727998312232,0.31787983,60917.0,60916.0,0.01585702]
[1727998318122,0.15372283,60917.0,60916.0,0.01585702]
[1727998318331,0.07442283,60917.0,60916.0,0.18001702]
[1727998318639,0.04978125,60917.0,60916.0,0.18001702]
[1727998319094,0.00055476,60917.0,60916.0,0.18001702]
[1727998319309,0.07442283,60917.0,60916.0,0.18001702]
[1727998319534,0.00055476,60917.0,60916.0,0.18001702]
[1727998319956,0.07442283,60917.0,60916.0,0.18001702]
[1727998320638,0.00055476,60917.0,60916.0,0.18001702]
[1727998321330,0.07442283,60917.0,60916.0,0.18001702]
[1727998321542,0.00055476,60917.0,60916.0,0.34320373]
[1727998322240,0.00055476,60917.0,60916.0,0.44270373]
[1727998322458,0.00055476,60917.0,60916.0,0.56570373]
[1727998322667,0.00055476,60917.0,60916.0,0.64350373]
[1727998323118,0.00055476,60917.0,60916.0,0.63850373]
[1727998323332,0.00055476,60917.0,60916.0,0.64350373]
[1727998323550,0.00055476,60917.0,60916.0,0.65350373]
[1727998324001,0.00055476,60917.0,60916.0,0.63350373]
[1727998324227,0.00055476,60917.0,60916.0,0.64750373]
[1727998324864,0.00055476,60917.0,60916.0,0.66150373]
[1727998327678,0.00055476,60917.0,60916.0,0.78398734]
[1727998332308,0.00055476,60917.0,60916.0,0.58370373]
[1727998332535,0.00055476,60917.0,60916.0,0.19801702]
[1727998333647,0.00055476,60917.0,60916.0,0.17001702]
[1727998333875,0.00055476,60917.0,60916.0,0.18101702]
[1727998334087,0.00055476,60917.0,60916.0,0.19001702]
[1727998335168,0.00055476,60917.0,60916.0,0.17901702]
[1727998336032,0.00055476,60917.0,60916.0,0.18801702]
[1727998341036,0.00055476,60917.0,60916.0,0.31050063]
[1727998341264,0.00055476,60917.0,60916.0,0.56528734]
[1727998342552,0.00055476,60917.0,60916.0,0.58828734]
[1727998343439,0.00055476,60917.0,60916.0,0.59028734]
[1727998344079,0.00055476,60917.0,60916.0,0.66628734]
[1727998347068,0.00055476,60917.0,60916.0,0.66428734]
[1727998351007,0.00055476,60917.0,60821.0,0.50584959]
[1727998351008,0.24634789,60915.0,60902.0,0.04920761]
[1727998351247,0.24634789,60915.0,60885.0,0.21627886]
[1727998351248,0.36426561,60908.0,60904.0,0.00434196]
[1727998351466,0.2642,60901.0,60900.0,0.04920761]
[1727998351695,0.68121863,60901.0,60900.0,0.04556961]
[1727998351972,0.164219,60894.0,60893.0,0.24634789]
[1727998352175,0.59977027,60894.0,60893.0,0.24634789]
[1727998352397,0.164238,60887.0,60886.0,0.24634789]
[1727998352618,0.28672161,60887.0,60886.0,0.24634789]
[1727998352829,0.28672161,60887.0,60877.0,0.24634789]
[1727998352830,0.164249,60883.0,60877.0,0.24634789]
[1727998353746,0.164249,60883.0,60872.0,0.00435815]
[1727998353747,0.164249,60883.0,60873.0,0.18690516]
[1727998354596,0.243549,60883.0,60873.0,0.18690516]
[1727998354818,0.243549,60883.0,60874.0,0.24634789]
[1727998358555,0.243549,60883.0,60873.0,0.18690516]
[1727998358795,0.243549,60883.0,60875.0,0.24634789]
[1727998359745,0.243549,60883.0,60870.0,0.000779]
[1727998361253,0.50673571,60883.0,60870.0,0.000779]
[1727998361741,0.69364087,60883.0,60870.0,0.000779]
[1727998361990,0.52946516,60879.0,60870.0,0.000779]
[1727998362256,0.69465187,60879.0,60870.0,0.000779]
[1727998362534,0.164279,60872.0,60870.0,0.000779]
[1727998362784,0.32746571,60872.0,60870.0,0.000779]
[1727998363513,0.40576571,60872.0,60870.0,0.000779]
[1727998363767,0.56069619,60872.0,60870.0,0.000779]
[1727998364008,0.342579,60872.0,60870.0,0.000779]
[1727998364263,0.242579,60872.0,60870.0,0.000779]
[1727998364500,0.251579,60872.0,60871.0,0.001818]
[1727998364988,0.242579,60872.0,60871.0,0.000818]
[1727998365244,0.251579,60872.0,60871.0,0.001818]
[1727998365918,0.242579,60872.0,60871.0,0.000818]
[1727998366428,0.248579,60872.0,60871.0,0.000818]
[1727998366877,0.242579,60872.0,60871.0,0.000818]
[1727998367099,0.2683346,60872.0,60871.0,0.000818]
[1727998367350,0.0267556,60872.0,60871.0,0.000818]
[1727998367681,0.165279,60872.0,60871.0,0.000818]
[1727998368122,0.001,60872.0,60871.0,0.000818]
[1727998368564,0.001,60872.0,60871.0,0.16400471]
[1727998369035,0.24634789,60886.0,60872.0,0.351553]
[1727998369248,0.24634789,60886.0,60874.0,0.023]
[1727998369249,0.24634789,60878.0,60874.0,0.023]
[1727998369469,0.164246,60885.0,60877.0,0.18690516]
[1727998369694,0.164246,60885.0,60882.0,0.18690516]
[1727998369906,0.164247,60884.0,60882.0,0.18690516]
[1727998370039,0.57483489,60886.0,60882.0,0.18690516]
[1727998370235,0.164244,60885.0,60882.0,0.18690516]
[1727998370470,0.164247,60884.0,60882.0,0.18690516]
[1727998371089,0.167247,60884.0,60878.0,0.18690516]
[1727998372116,0.168247,60884.0,60878.0,0.18690516]
[1727998372460,0.168247,60884.0,60878.0,0.18854116]
[1727998372662,0.165247,60884.0,60878.0,0.18854116]
[1727998372894,0.001,60884.0,60878.0,0.18854116]
[1727998373109,0.165248,60884.0,60878.0,0.18854116]
[1727998373540,0.164248,60884.0,60878.0,0.18854116]
[1727998373773,0.165248,60884.0,60878.0,0.18854116]
[1727998373965,0.164249,60883.0,60878.0,0.18854116]
[1727998375977,0.164245,60885.0,60878.0,0.18854116]
[1727998376188,0.164247,60884.0,60878.0,0.18854116]
[1727998376427,0.16425,60883.0,60878.0,0.18954116]
[1727998376907,0.18999931,60883.0,60878.0,0.18854116]
[1727998377376,0.16425,60883.0,60878.0,0.18854116]
[1727998378027,0.16425,60883.0,60878.0,0.18954116]
[1727998379287,0.16425,60883.0,60878.0,0.001636]
[1727998379485,0.16425,60883.0,60878.0,0.002636]
[1727998379846,0.16425,60883.0,60878.0,0.001636]
[1727998380075,0.16426,60879.0,60878.0,0.001636]
[1727998380284,0.16426,60879.0,60878.0,0.002636]
[1727998380718,0.16426,60879.0,60878.0,0.001636]
[1727998381178,0.16426,60879.0,60878.0,0.002636]
[1727998381627,0.164259,60880.0,60878.0,0.002636]
[1727998381842,0.164255,60881.0,60879.0,0.18690516]
[1727998382056,0.164252,60882.0,60879.0,0.18690516]
[1727998382598,0.003,60883.0,60879.0,0.18690516]
[1727998382838,0.164252,60882.0,60878.0,0.001636]
[1727998383067,0.003,60883.0,60878.0,0.001636]
[1727998383496,0.328495,60884.0,60878.0,0.165897]
[1727998383497,0.164252,60882.0,60878.0,0.165897]
[1727998383729,0.328495,60884.0,60878.0,0.165897]
[1727998383730,0.164255,60881.0,60878.0,0.165897]
[1727998383954,0.003,60880.0,60878.0,0.165897]
[1727998384227,0.164255,60881.0,60878.0,0.165897]
[1727998385480,0.02656772,60882.0,60878.0,0.165897]
[1727998385481,0.19081972,60882.0,60878.0,0.165897]
[1727998385964,0.02656772,60882.0,60878.0,0.001636]
[1727998386239,0.000818,60882.0,60881.0,0.187254]
[1727998386475,0.000818,60882.0,60881.0,0.35044071]
[1727998387683,0.001818,60882.0,60881.0,0.36044071]
[1727998388416,0.001818,60882.0,60881.0,0.45244071]
[1727998389625,0.001818,60882.0,60881.0,0.34744071]
[1727998389626,0.002818,60882.0,60881.0,0.34744071]
[1727998389831,0.002818,60882.0,60881.0,0.02]
[1727998390491,0.16707,60882.0,60881.0,0.02]
[1727998391139,0.002818,60882.0,60881.0,0.02]
[1727998391354,0.16607,60882.0,60881.0,0.01]
[1727998391826,0.16607,60882.0,60881.0,0.012]
[1727998392268,0.16507,60882.0,60881.0,0.002]
[1727998392712,0.16507,60882.0,60881.0,0.005]
[1727998393906,0.16507,60882.0,60881.0,0.002]
[1727998394123,0.16426,60879.0,60878.0,0.001636]
[1727998396439,0.16526,60879.0,60878.0,0.001636]
[1727998397173,0.001,60879.0,60878.0,0.001636]
[1727998398455,0.16526,60879.0,60878.0,0.001636]
[1727998398942,0.0257504,60881.0,60880.0,0.164257]
[1727998399173,0.000818,60882.0,60881.0,0.164254]
[1727998400338,0.001818,60882.0,60881.0,0.164254]
[1727998401837,0.000818,60882.0,60881.0,0.164254]
[1727998402114,0.000818,60882.0,60881.0,0.5967886]
[1727998402320,0.001818,60882.0,60881.0,0.44944071]
[1727998402968,0.000818,60882.0,60881.0,0.54444071]
[1727998403178,0.001818,60882.0,60881.0,0.54944071]
[1727998403418,0.002818,60882.0,60881.0,0.56344071]
[1727998404071,0.001818,60882.0,60881.0,0.55644071]
[1727998405384,0.002818,60882.0,60881.0,0.57460604]
[1727998417491,0.002818,60882.0,60881.0,0.38260604]
[1727998421726,0.002818,60882.0,60881.0,0.47980604]
[1727998437582,0.002818,60882.0,60881.0,0.38260604]
[1727998438810,0.002818,60882.0,60881.0,0.35960604]
[1727998439243,0.002818,60882.0,60881.0,0.19641933]
[1727998442465,0.002818,60882.0,60881.0,0.38260604]
[1727998442681,0.002818,60882.0,60881.0,0.48180604]
[1727998442896,0.002818,60882.0,60881.0,0.55780604]
[1727998447274,0.002818,60882.0,60881.0,0.48180604]
[1727998452016,0.002818,60882.0,60881.0,0.48380604]
[1727998452232,0.002818,60882.0,60881.0,0.48180604]
[1727998454452,0.002818,60882.0,60881.0,0.48380604]
[1727998454889,0.002818,60882.0,60881.0,0.48180604]
[1727998455397,0.002818,60882.0,60881.0,0.38260604]
[1727998475647,0.002818,60882.0,60881.0,0.50517195]
[1727998481512,0.002818,60882.0,60881.0,0.60517195]
[1727998481768,0.14771521,60891.0,60890.0,0.27723]
[1727998481994,0.14771521,60891.0,60890.0,0.35041671]
[1727998482239,0.1314384,60891.0,60890.0,0.32741671]
[1727998482470,0.0822,60891.0,60890.0,0.32741671]
[1727998483126,0.0822,60891.0,60890.0,0.34141671]
[1727998483127,0.0832,60891.0,60890.0,0.34141671]
[1727998483351,0.0832,60891.0,60890.0,0.46398262]
[1727998483571,0.0832,60891.0,60890.0,0.46819309]
[1727998485176,0.0832,60891.0,60890.0,0.48219309]
[1727998486547,0.0832,60891.0,60890.0,0.19644047]
[1727998488215,0.0832,60891.0,60890.0,0.028]
[1727998488216,0.13325466,60891.0,60890.0,0.028]
[1727998488436,0.347245,60891.0,60890.0,0.028]
[1727998488716,0.55943856,60891.0,60890.0,0.028]
[1727998488942,0.68247956,60891.0,60890.0,0.028]
[1727998489164,0.68247956,60891.0,60890.0,0.014]
[1727998489413,0.68247956,60891.0,60884.0,0.164245]
[1727998489414,0.0822,60886.0,60884.0,0.164245]
[1727998489640,0.0822,60886.0,60880.0,0.24634789]
[1727998489908,0.32025569,60886.0,60880.0,0.24634789]
[1727998490123,0.15601469,60886.0,60882.0,0.12256591]
[1727998490583,0.15601469,60886.0,60882.0,0.28681691]
[1727998490584,0.164244,60885.0,60882.0,0.28681691]
[1727998491263,0.23805869,60885.0,60884.0,0.009]
[1727998491490,0.07381469,60885.0,60880.0,0.00420402]
[1727998491724,0.2134436,60883.0,60880.0,0.16846002]
[1727998491976,0.2134436,60883.0,60882.0,0.006]
[1727998492209,0.0491946,60883.0,60880.0,0.164256]
[1727998492505,0.04919359,60883.0,60879.0,0.12256591]
[1727998492760,0.04919359,60883.0,60882.0,0.164252]
[1727998492987,0.04919359,60883.0,60882.0,0.28681791]
[1727998493214,0.04919359,60883.0,60882.0,0.12256591]
[1727998493728,0.04919359,60883.0,60882.0,0.28681791]
[1727998494174,0.04918175,60883.0,60882.0,0.28681791]
[1727998494866,0.07377262,60884.0,60883.0,0.164249]
[1727998496012,0.07377262,60884.0,60883.0,0.168249]
[1727998496954,0.07377262,60884.0,60883.0,0.6007836]
[1727998497177,0.07377262,60884.0,60883.0,0.35443571]
[1727998497407,0.07377262,60884.0,60883.0,0.35843571]
[1727998498531,0.17210087,60890.0,60884.0,0.023]
[1727998498750,0.17210087,60890.0,60889.0,0.28679891]
[1727998498999,0.07375378,60890.0,60889.0,0.28659891]
[1727998499219,0.000818,60891.0,60890.0,0.16423]
[1727998499690,0.000818,60891.0,60890.0,0.16413]
[1727998499930,0.000818,60891.0,60890.0,0.16323]
[1727998500373,0.000818,60891.0,60890.0,0.16313]
[1727998500801,0.001818,60891.0,60890.0,0.16233]
[1727998501019,0.001818,60891.0,60890.0,0.16223]
[1727998501237,0.001818,60891.0,60890.0,0.16213]
[1727998501672,0.001818,60891.0,60890.0,0.16133]
[1727998501897,0.001818,60891.0,60889.0,0.28679791]
[1727998502137,0.002818,60891.0,60890.0,0.16413]
[1727998502612,0.001818,60891.0,60890.0,0.16323]
[1727998503045,0.001818,60891.0,60890.0,0.004]
[1727998503262,0.001818,60891.0,60890.0,0.0039]
[1727998503714,0.23880365,60891.0,60890.0,0.0039]
[1727998503957,0.341745,60891.0,60890.0,0.0079]
[1727998504203,0.9431024,60891.0,60890.0,0.0079]
[1727998504446,0.77991569,60891.0,60890.0,0.0079]
[1727998504674,0.94579099,60891.0,60890.0,0.004]
[1727998504910,0.94579099,60891.0,60882.0,0.001636]
[1727998504911,0.164249,60883.0,60882.0,0.001636]
[1727998505143,0.241949,60883.0,60882.0,0.001636]
[1727998505376,0.3647816,60883.0,60882.0,0.001636]
[1727998505621,0.4637816,60883.0,60882.0,0.001636]
[1727998505863,0.74339371,60883.0,60882.0,0.001636]
[1727998506104,0.84339371,60883.0,60882.0,0.001636]
[1727998506551,1.13640856,60883.0,60882.0,0.001636]
[1727998507020,1.16216198,60883.0,60882.0,0.001636]
[1727998507241,1.37116362,60883.0,60882.0,0.001636]
[1727998507466,1.37216362,60883.0,60882.0,0.001636]
[1727998507939,1.37116362,60883.0,60882.0,0.001636]
[1727998508158,1.3474102,60883.0,60882.0,0.003636]
[1727998508377,1.49428403,60883.0,60882.0,0.003636]
[1727998508601,1.49427128,60883.0,60882.0,0.003636]
[1727998509037,1.20172413,60883.0,60882.0,0.003636]
[1727998509260,1.05456725,60883.0,60882.0,0.003636]
[1727998509490,0.65212254,60883.0,60882.0,0.003636]
[1727998509718,0.55312254,60883.0,60882.0,0.003636]
[1727998509953,0.31750721,60883.0,60882.0,0.003636]
[1727998510183,0.243949,60883.0,60882.0,0.003636]
[1727998510410,0.29298389,60883.0,60882.0,0.003636]
[1727998510689,0.21428389,60883.0,60882.0,0.002636]
[1727998510916,0.21328389,60883.0,60882.0,0.001636]
[1727998511146,0.21528389,60883.0,60882.0,0.001636]
[1727998511364,0.24003401,60883.0,60882.0,0.001636]
[1727998511588,0.23903401,60883.0,60882.0,0.001636]
[1727998511876,0.23903401,60883.0,60882.0,0.003636]
[1727998513753,0.18999912,60883.0,60882.0,0.003636]
[1727998514246,0.02575012,60883.0,60882.0,0.003636]
[1727998514496,0.07355821,60885.0,60884.0,0.164246]
[1727998514719,0.07355821,60885.0,60884.0,0.3511553]
[1727998515195,0.000818,60890.0,60885.0,0.328485]
[1727998515439,0.000818,60890.0,60888.0,0.1869093]
[1727998515672,0.165049,60890.0,60888.0,0.1869093]
[1727998517112,0.164233,60889.0,60888.0,0.1869093]
[1727998517343,0.164233,60889.0,60888.0,0.1879093]
[1727998518057,0.164233,60889.0,60888.0,0.1869093]
[1727998518501,0.165233,60889.0,60888.0,0.1869093]
[1727998519613,0.166233,60889.0,60888.0,0.1869093]
[1727998520703,0.164236,60888.0,60885.0,0.1685604]
[1727998520958,0.002,60889.0,60887.0,0.164238]
[1727998521172,0.002,60889.0,60885.0,0.0043174]
[1727998521410,0.164236,60888.0,60885.0,0.0043174]
[1727998521648,0.002,60889.0,60886.0,0.16424]
[1727998521866,0.164236,60888.0,60885.0,0.164243]
[1727998522090,0.165236,60888.0,60885.0,0.164243]
[1727998522579,0.166236,60888.0,60885.0,0.164243]
[1727998525286,0.002,60888.0,60885.0,0.164243]
[1727998526196,0.002,60888.0,60886.0,0.164241]
[1727998526435,0.002,60888.0,60884.0,0.19285789]
[1727998526678,0.16424,60887.0,60884.0,0.165881]
[1727998526913,0.330475,60888.0,60884.0,0.001636]
[1727998527148,0.164239,60887.0,60884.0,0.165881]
[1727998527882,0.001,60888.0,60884.0,0.001636]
[1727998528102,0.165236,60888.0,60885.0,0.164243]
[1727998528560,0.164244,60885.0,60884.0,0.001636]
[1727998528764,0.245944,60885.0,60884.0,0.001636]
[1727998530615,0.164244,60885.0,60884.0,0.001636]
[1727998531010,0.328478,60887.0,60884.0,0.001636]
[1727998531180,0.164242,60886.0,60884.0,0.1885453]
[1727998531405,0.164244,60885.0,60884.0,0.001636]
[1727998535286,0.328469,60889.0,60884.0,0.001636]
[1727998535510,0.492702,60889.0,60888.0,0.1869093]
[1727998536565,0.493702,60889.0,60888.0,0.1869093]
[1727998536781,0.492702,60889.0,60888.0,0.1869093]
[1727998536985,0.164242,60886.0,60884.0,0.1885453]
[1727998537436,0.164244,60885.0,60884.0,0.1885453]
[1727998537622,0.164244,60885.0,60884.0,0.001636]
[1727998548363,0.164244,60885.0,60884.0,0.1885453]
[1727998548617,0.164242,60886.0,60884.0,0.1885453]
[1727998548841,0.164244,60885.0,60884.0,0.1885453]
[1727998549591,0.164244,60885.0,60884.0,0.001636]
[1727998553400,0.21337975,60885.0,60884.0,0.001636]
[1727998554391,0.164244,60885.0,60884.0,0.001636]
[1727998555289,0.47301831,60885.0,60884.0,0.001636]
[1727998555851,0.164244,60885.0,60884.0,0.001636]
[1727998556278,0.37468062,60885.0,60884.0,0.001636]
[1727998557388,0.47302776,60885.0,60884.0,0.001636]
[1727998559020,0.21043662,60885.0,60884.0,0.001636]
[1727998559261,0.37468062,60885.0,60884.0,0.001636]
[1727998559482,0.47311094,60885.0,60884.0,0.001636]
[1727998560207,0.45358062,60885.0,60884.0,0.001636]
[1727998561003,0.45337658,60885.0,60884.0,0.001636]
[1727998563231,0.57643944,60885.0,60884.0,0.001636]
[1727998563498,0.45337658,60885.0,60884.0,0.001636]
[1727998563718,0.37447658,60885.0,60884.0,0.001636]